[Event "2nd Gujarat Open 2019"]
[Site "Ahmedabad, Gujarat"]
[Date "2019.09.27"]
[Round "8.20"]
[White "Pandey Srishti"]
[Black "Souhardo Basak"]
[Result "1-0"]
[ECO "A21"]
[WhiteElo "1928"]
[BlackElo "2301"]
[Annotator "NA"]
[PlyCount "79"]
[EventDate "2019.09.22"]
[EventType "swiss"]
[EventCountry "IND"]
[SourceTitle "playchess.com"]
[Source "ChessBase"]
[SourceQuality "1"]
[TimeControl "5400+30"]

1. c4 {[%emt 0:00:00]} e5 {[%emt 0:00:31]} 2. Nc3 {[%emt 0:00:00]} g6 {[%emt 0:00:07]} 3. g3 {[%emt 0:00:00]} d6 {[%emt 0:00:46]} 4. Bg2 {[%emt 0:00:00]} Bg7 {[%emt 0:00:04]} 5. e3 {[%emt 0:00:11]} f5 {[%emt 0:00:15]} 6. Nge2 {[%emt 0:02:16]} Nf6 {[%emt 0:00:15]} 7. b3 {[%emt 0:00:41]} c6 8. d4 {[%emt 0:00:44]} O-O {[%emt 0:06:23]} 9. dxe5 {[%emt 0:01:28]} dxe5 {[%emt 0:00:27]} 10. Ba3 {[%emt 0:00:05]} Re8 {[%emt 0:00:40]} 11. O-O {[%emt 0:02:36]} Qa5 {[%emt 0:01:03]} 12. Qc1 {[%emt 0:00:44]} Be6 {[%emt 0:01:41]} 13. Bd6 {[%emt 0:03:56]} Nbd7 {[%emt 0:06:22]} 14. Rd1 {[%emt 0:00:06]} Ng4 {[%emt 0:17:29]} 15. h3 {[%emt 0:21:16]} Nh6 {[%emt 0:00:08]} 16. b4 {[%emt 0:01:13]} Qb6 {[%emt 0:02:22]} 17. c5 {[%emt 0:05:13]} Qxb4 {[%emt 0:01:49]} 18. Rb1 {[%emt 0:00:10]} Qa5 {[%emt 0:00:50]} 19. Rxb7 {[%emt 0:00:23]} Nxc5 {[%emt 0:00:41]} 20. Rxg7+ {[%emt 0:02:24]} Kxg7 {[%emt 0:00:11]} 21. Bxe5+ {[%emt 0:00:03]} Kg8 {[%emt 0:00:47]} 22. Bxc6 {[%emt 0:02:52]} Nf7 {[%emt 0:04:51]} 23. Bd4 {[%emt 0:04:10]} Ng5 {[%emt 0:19:54]} 24. h4 {[%emt 0:06:06]} Nge4 {[%emt 0:22:58]} 25. Nxe4 {[%emt 0:08:01]} Nxe4 {[%emt 0:00:15]} 26. Bxa8 {[%emt 0:00:10]} Rxa8 {[%emt 0:00:09]} 27. Qc6 {[%emt 0:04:01]} Qd5 {[%emt 0:05:28]} 28. Qc7 {[%emt 0:00:44]} Bf7 {[%emt 0:00:17]} 29. f3 {[%emt 0:02:43]} Nd6 {[%emt 0:01:30]} 30. Nc3 {[%emt 0:00:21]} Qe6 {[%emt 0:00:02]} 31. Rb1 {[%emt 0:04:24]} Ne8 {[%emt 0:03:11]} 32. Rb8 {[%emt 0:01:56]} Rxb8 {[%emt 0:00:30]} 33. Qxb8 {[%emt 0:00:02]} Qc6 {[%emt 0:01:09]} 34. Qe5 {[%emt 0:01:04]} Kf8 {[%emt 0:00:07]} 35. Bc5+ {[%emt 0:00:18]} Kg8 {[%emt 0:00:11]} 36. Qe7 {[%emt 0:01:49]} Kg7 {[%emt 0:00:02]} 37. Qf8+ {[%emt 0:00:28]} Kf6 {[%emt 0:00:02]} 38. Ne2 {[%emt 0:03:56]} Qxf3 {[%emt 0:04:22]} 39. Qh8+ {[%emt 0:00:09]} Ng7 {[%emt 0:00:16]} 40. Qd8+ {[%emt 0:00:12]} 1-0

[Event "2nd Gujarat Open 2019"]
[Site "Ahmedabad, Gujarat"]
[Date "2019.09.27"]
[Round "8.21"]
[White "Shailesh, Dravid"]
[Black "Anustoop Biswas"]
[Result "1-0"]
[ECO "A06"]
[WhiteElo "2299"]
[BlackElo "2154"]
[Annotator "NA"]
[PlyCount "93"]
[EventDate "2019.09.22"]
[EventType "swiss"]
[EventCountry "IND"]
[SourceTitle "playchess.com"]
[Source "ChessBase"]
[SourceQuality "1"]
[TimeControl "5400+30"]

1. Nf3 {[%emt 0:10:01]} d5 {[%emt 0:00:00]} 2. g3 {[%emt 0:00:05]} Nf6 {[%emt 0:00:05]} 3. Bg2 {[%emt 0:00:05]} c5 {[%emt 0:01:11]} 4. O-O {[%emt 0:00:10]} e6 {[%emt 0:00:30]} 5. c4 {[%emt 0:01:02]} d4 {[%emt 0:00:19]} 6. e3 {[%emt 0:00:59]} Nc6 {[%emt 0:00:01]} 7. exd4 {[%emt 0:00:12]} cxd4 {[%emt 0:00:02]} 8. d3 {[%emt 0:00:06]} Bd6 {[%emt 0:00:07]} 9. Re1 {[%emt 0:02:48]} h6 {[%emt 0:00:25]} 10. a3 {[%emt 0:00:11]} a5 {[%emt 0:00:36]} 11. Nbd2 {[%emt 0:00:11]} O-O {[%emt 0:00:33]} 12. Rb1 {[%emt 0:00:11]} e5 {[%emt 0:00:28]} 13. Nh4 {[%emt 0:00:17]} Rb8 {[%emt 0:08:10]} 14. Ne4 {[%emt 0:02:29]} Nxe4 {[%emt 0:19:06]} 15. Bxe4 {[%emt 0:00:10]} Qf6 {[%emt 0:08:10]} 16. Qh5 {[%emt 0:02:08]} Rd8 {[%emt 0:02:33]} 17. g4 {[%emt 0:01:54]} g6 {[%emt 0:25:53]} 18. Qxh6 {[%emt 0:01:35]} Bxg4 {[%emt 0:17:05]} 19. Bg5 {[%emt 0:02:03]} Qg7 {[%emt 0:04:45]} 20. Qxg7+ {[%emt 0:00:17]} Kxg7 {[%emt 0:00:01]} 21. Bxd8 {[%emt 0:00:42]} Rxd8 {[%emt 0:00:02]} 22. Nf3 {[%emt 0:00:51]} f6 {[%emt 0:00:08]} 23. Nd2 {[%emt 0:02:12]} Rh8 {[%emt 0:01:57]} 24. Bxc6 {[%emt 0:03:24]} bxc6 {[%emt 0:00:01]} 25. Ne4 {[%emt 0:02:07]} Bc7 {[%emt 0:03:29]} 26. b4 {[%emt 0:00:43]} f5 {[%emt 0:00:29]} 27. Nc5 {[%emt 0:02:02]} Bd6 {[%emt 0:01:19]} 28. Nb7 {[%emt 0:10:36]} Bc7 {[%emt 0:00:02]} 29. bxa5 {[%emt 0:03:02]} e4 {[%emt 0:00:29]} 30. dxe4 {[%emt 0:00:16]} Bxh2+ {[%emt 0:00:59]} 31. Kg2 {[%emt 0:00:14]} Bf4 {[%emt 0:01:03]} 32. Rh1 {[%emt 0:01:09]} Bh5 {[%emt 0:04:09]} 33. Nc5 {[%emt 0:00:52]} Kf6 {[%emt 0:00:13]} 34. a6 {[%emt 0:03:27]} fxe4 {[%emt 0:00:14]} 35. Nxe4+ {[%emt 0:00:21]} Kf5 {[%emt 0:00:15]} 36. Ng3+ {[%emt 0:00:17]} Bxg3 {[%emt 0:00:02]} 37. Kxg3 {[%emt 0:00:07]} Ra8 {[%emt 0:00:04]} 38. Rb6 {[%emt 0:00:31]} Be2 {[%emt 0:00:16]} 39. Rxc6 {[%emt 0:00:48]} Rb8 {[%emt 0:01:51]} 40. Rc5+ {[%emt 0:00:49]} Kf6 {[%emt 0:00:06]} 41. Rb5 {[%emt 0:00:19]} Ra8 {[%emt 0:00:01]} 42. Rb6+ {[%emt 0:00:39]} Kf5 {[%emt 0:00:11]} 43. Rh4 {[%emt 0:01:41]} Rd8 {[%emt 0:01:13]} 44. a7 {[%emt 0:00:12]} Ra8 {[%emt 0:00:39]} 45. Rxd4 {[%emt 0:00:09]} Rxa7 {[%emt 0:00:01]} 46. Rd5+ {[%emt 0:00:06]} Ke4 {[%emt 0:00:06]} 47. Re6# {[%emt 0:00:03]} 1-0

[Event "2nd Gujarat Open 2019"]
[Site "Ahmedabad, Gujarat"]
[Date "2019.09.27"]
[Round "8.22"]
[White "Nikhil Magizhnan"]
[Black "Nayem, Haque"]
[Result "1-0"]
[ECO "B00"]
[WhiteElo "2251"]
[BlackElo "2054"]
[Annotator "NA"]
[PlyCount "129"]
[EventDate "2019.09.22"]
[EventType "swiss"]
[EventCountry "IND"]
[SourceTitle "playchess.com"]
[Source "ChessBase"]
[SourceQuality "1"]
[TimeControl "5400+30"]

1. e4 {[%emt 0:00:00]} d6 {[%emt 0:00:00]} 2. d4 {[%emt 0:00:00]} e5 {[%emt 0:00:00]} 3. Nf3 {[%emt 0:01:16]} Bg4 {[%emt 0:00:51]} 4. dxe5 {[%emt 0:02:05]} Nd7 {[%emt 0:01:29]} 5. h3 {[%emt 0:10:26]} Bxf3 {[%emt 0:04:05]} 6. Qxf3 {[%emt 0:02:30]} dxe5 {[%emt 0:00:09]} 7. Bc4 {[%emt 0:01:37]} Qf6 {[%emt 0:01:39]} 8. Qe2 {[%emt 0:01:52]} Bc5 {[%emt 0:07:18]} 9. Nc3 {[%emt 0:08:12]} Ne7 {[%emt 0:02:21]} 10. h4 {[%emt 0:02:21]} Nb6 {[%emt 0:02:13]} 11. Bb5+ {[%emt 0:02:54]} c6 {[%emt 0:01:01]} 12. Bd3 {[%emt 0:00:11]} Ng6 {[%emt 0:03:33]} 13. g3 {[%emt 0:00:48]} h6 {[%emt 0:00:18]} 14. Be3 {[%emt 0:02:25]} Qe7 {[%emt 0:02:21]} 15. O-O-O {[%emt 0:02:23]} Nf8 {[%emt 0:04:31]} 16. Bxc5 {[%emt 0:04:41]} Qxc5 {[%emt 0:00:04]} 17. f4 {[%emt 0:00:05]} O-O-O {[%emt 0:05:23]} 18. Qg4+ {[%emt 0:02:17]} Ne6 {[%emt 0:00:27]} 19. f5 {[%emt 0:00:58]} h5 {[%emt 0:02:06]} 20. Qh3 {[%emt 0:00:38]} Nd4 {[%emt 0:02:31]} 21. f6+ {[%emt 0:09:29]} Kb8 {[%emt 0:01:54]} 22. fxg7 {[%emt 0:00:36]} Rhg8 {[%emt 0:00:12]} 23. g4 {[%emt 0:00:31]} hxg4 {[%emt 0:02:29]} 24. Qxg4 {[%emt 0:02:53]} Ne6 {[%emt 0:00:03]} 25. h5 {[%emt 0:06:46]} Rxg7 {[%emt 0:00:03]} 26. Qf5 {[%emt 0:00:24]} Rh8 {[%emt 0:01:36]} 27. Kb1 {[%emt 0:02:33]} Rgh7 {[%emt 0:10:02]} 28. Be2 {[%emt 0:08:12]} Nd4 {[%emt 0:01:18]} 29. Qf6 {[%emt 0:02:27]} a6 {[%emt 0:05:19]} 30. h6 {[%emt 0:10:23]} Ka7 {[%emt 0:01:40]} 31. Rh3 {[%emt 0:08:22]} Nd7 {[%emt 0:04:53]} 32. Qg5 {[%emt 0:00:35]} Nf8 {[%emt 0:10:16]} 33. Bg4 {[%emt 0:01:15]} Nfe6 {[%emt 0:01:51]} 34. Bxe6 {[%emt 0:00:16]} Nxe6 {[%emt 0:01:37]} 35. Qf6 {[%emt 0:00:18]} Nf4 {[%emt 0:00:25]} 36. Rh2 {[%emt 0:00:18]} Rg8 {[%emt 0:01:10]} 37. a3 {[%emt 0:04:44]} Rg6 {[%emt 0:04:22]} 38. Qf5 {[%emt 0:00:10]} Rgxh6 {[%emt 0:00:52]} 39. Rxh6 {[%emt 0:00:59]} Rxh6 {[%emt 0:00:04]} 40. Qxf7 {[%emt 0:00:10]} Rd6 {[%emt 0:07:08]} 41. Rh1 {[%emt 0:00:17]} Rd8 {[%emt 0:02:23]} 42. Rh7 {[%emt 0:00:29]} Qg1+ {[%emt 0:00:11]} 43. Ka2 {[%emt 0:00:11]} Qg8 {[%emt 0:00:15]} 44. Na4 {[%emt 0:01:12]} Qxf7+ {[%emt 0:03:06]} 45. Rxf7 {[%emt 0:00:02]} Ne6 {[%emt 0:01:46]} 46. Re7 {[%emt 0:00:40]} Rd6 {[%emt 0:00:19]} 47. c4 {[%emt 0:00:39]} c5 {[%emt 0:00:15]} 48. Nc3 {[%emt 0:00:37]} Nf4 {[%emt 0:02:52]} 49. Nd5 {[%emt 0:00:41]} Nd3 {[%emt 0:00:36]} 50. b4 {[%emt 0:00:28]} Rh6 {[%emt 0:00:37]} 51. b5 {[%emt 0:00:17]} axb5 {[%emt 0:00:15]} 52. cxb5 {[%emt 0:00:11]} c4 {[%emt 0:00:05]} 53. a4 {[%emt 0:00:23]} Rh2+ {[%emt 0:01:50]} 54. Ka3 {[%emt 0:00:25]} Rb2 {[%emt 0:00:02]} 55. Re8 {[%emt 0:01:19]} Rb3+ {[%emt 0:00:26]} 56. Ka2 {[%emt 0:00:01]} Nb4+ {[%emt 0:01:02]} 57. Nxb4 {[%emt 0:00:10]} Rxb4 {[%emt 0:00:10]} 58. Rxe5 {[%emt 0:00:49]} Rxa4+ {[%emt 0:01:21]} 59. Kb2 {[%emt 0:00:01]} Kb6 {[%emt 0:00:43]} 60. Kc3 {[%emt 0:00:05]} Ka5 {[%emt 0:01:03]} 61. Rd5 {[%emt 0:00:37]} Rb4 {[%emt 0:01:02]} 62. e5 {[%emt 0:01:07]} Rb1 {[%emt 0:00:27]} 63. Kxc4 {[%emt 0:00:21]} Re1 {[%emt 0:00:27]} 64. Kc5 {[%emt 0:00:09]} b6+ {[%emt 0:00:33]} 65. Kd6 {[%emt 0:00:16]} 1-0

[Event "2nd Gujarat Open 2019"]
[Site "Ahmedabad, Gujarat"]
[Date "2019.09.27"]
[Round "8.23"]
[White "Kiran, Manisha Mohanty"]
[Black "Deshmukh, Anup"]
[Result "1/2-1/2"]
[ECO "B94"]
[WhiteElo "2102"]
[BlackElo "2193"]
[Annotator "NA"]
[PlyCount "109"]
[EventDate "2019.09.22"]
[EventType "swiss"]
[EventCountry "IND"]
[SourceTitle "playchess.com"]
[Source "ChessBase"]
[SourceQuality "1"]
[TimeControl "5400+30"]

1. e4 {[%emt 0:00:49]} c5 {[%emt 0:00:00]} 2. Nf3 {[%emt 0:00:04]} d6 {[%emt 0:00:00]} 3. d4 {[%emt 0:00:04]} cxd4 {[%emt 0:00:00]} 4. Nxd4 {[%emt 0:00:04]} Nf6 {[%emt 0:00:03]} 5. Nc3 {[%emt 0:00:05]} a6 {[%emt 0:00:07]} 6. Bg5 {[%emt 0:00:04]} Bd7 {[%emt 0:03:12]} 7. Qe2 {[%emt 0:00:53]} Nc6 {[%emt 0:02:11]} 8. O-O-O {[%emt 0:00:10]} Nxd4 {[%emt 0:00:35]} 9. Rxd4 {[%emt 0:00:07]} Rc8 {[%emt 0:00:12]} 10. Rd3 {[%emt 0:03:24]} Qa5 {[%emt 0:06:16]} 11. Bd2 {[%emt 0:00:55]} Qc7 {[%emt 0:12:49]} 12. Bg5 {[%emt 0:03:52]} e6 {[%emt 0:09:07]} 13. Kb1 {[%emt 0:03:22]} Be7 {[%emt 0:05:54]} 14. h4 {[%emt 0:01:15]} b5 {[%emt 0:01:12]} 15. Re3 {[%emt 0:10:15]} b4 {[%emt 0:13:40]} 16. Nd1 {[%emt 0:08:52]} h6 {[%emt 0:02:01]} 17. Bf4 {[%emt 0:09:25]} e5 {[%emt 0:03:30]} 18. Bh2 {[%emt 0:04:32]} Ng4 {[%emt 0:07:20]} 19. Rh3 {[%emt 0:06:12]} O-O {[%emt 0:03:07]} 20. f3 {[%emt 0:00:36]} Nxh2 {[%emt 0:10:44]} 21. R3xh2 {[%emt 0:00:08]} f5 {[%emt 0:01:53]} 22. Ne3 {[%emt 0:03:43]} fxe4 {[%emt 0:02:21]} 23. Qc4+ {[%emt 0:05:20]} Qxc4 {[%emt 0:01:49]} 24. Bxc4+ {[%emt 0:00:05]} Rxc4 {[%emt 0:01:12]} 25. Nxc4 {[%emt 0:00:05]} Bb5 {[%emt 0:04:32]} 26. Ne3 {[%emt 0:03:05]} exf3 {[%emt 0:00:34]} 27. gxf3 {[%emt 0:00:07]} Rxf3 {[%emt 0:00:48]} 28. Nd5 {[%emt 0:00:06]} Bd8 {[%emt 0:00:53]} 29. Nxb4 {[%emt 0:00:05]} Rf4 {[%emt 0:01:30]} 30. a3 {[%emt 0:09:04]} Kf7 {[%emt 0:01:49]} 31. h5 {[%emt 0:06:03]} Ke6 {[%emt 0:00:13]} 32. Rd1 {[%emt 0:00:26]} Rf1 {[%emt 0:03:35]} 33. Rxf1 {[%emt 0:01:05]} Bxf1 {[%emt 0:00:01]} 34. Nd3 {[%emt 0:00:07]} e4 {[%emt 0:00:50]} 35. Nf4+ {[%emt 0:00:12]} Kf5 {[%emt 0:01:18]} 36. Rf2 {[%emt 0:00:45]} Bb5 {[%emt 0:00:09]} 37. Nd5+ {[%emt 0:03:40]} Ke5 {[%emt 0:01:19]} 38. Nc3 {[%emt 0:03:03]} e3 {[%emt 0:00:11]} 39. Rf8 {[%emt 0:00:22]} Be7 {[%emt 0:00:41]} 40. Rf3 {[%emt 0:03:40]} Bg5 {[%emt 0:00:43]} 41. Rh3 {[%emt 0:00:06]} Bd7 {[%emt 0:01:13]} 42. Rg3 {[%emt 0:01:00]} d5 {[%emt 0:00:16]} 43. Ne2 {[%emt 0:00:28]} d4 {[%emt 0:00:18]} 44. Kc1 {[%emt 0:00:08]} Be8 {[%emt 0:00:29]} 45. Rh3 {[%emt 0:00:11]} g6 {[%emt 0:00:35]} 46. hxg6 {[%emt 0:00:05]} Bxg6 {[%emt 0:00:04]} 47. Kd1 {[%emt 0:00:05]} Ke4 {[%emt 0:00:58]} 48. Ng3+ {[%emt 0:01:15]} Kf3 {[%emt 0:00:34]} 49. Ne2+ {[%emt 0:00:50]} Kg2 {[%emt 0:00:32]} 50. Rg3+ {[%emt 0:01:03]} Kf2 {[%emt 0:00:05]} 51. Rh3 {[%emt 0:00:14]} Kg2 {[%emt 0:01:11]} 52. Rg3+ {[%emt 0:00:05]} Kf2 {[%emt 0:00:30]} 53. Rh3 {[%emt 0:00:04]} Kg2 {[%emt 0:00:43]} 54. Rg3+ {[%emt 0:00:16]} Kh2 {[%emt 0:00:32]} 55. Rxg5 {[%emt 0:00:23]} 1/2-1/2

[Event "2nd Gujarat Open 2019"]
[Site "Ahmedabad, Gujarat"]
[Date "2019.09.27"]
[Round "8.24"]
[White "Lakshmi Narayanan M V"]
[Black "Pranav, Shetty"]
[Result "1-0"]
[ECO "E63"]
[WhiteElo "2188"]
[BlackElo "2124"]
[Annotator "NA"]
[PlyCount "163"]
[EventDate "2019.09.22"]
[EventType "swiss"]
[EventCountry "IND"]
[SourceTitle "playchess.com"]
[Source "ChessBase"]
[SourceQuality "1"]
[TimeControl "5400+30"]

1. d4 Nf6 2. c4 g6 3. Nc3 Bg7 4. g3 O-O 5. Bg2 d6 6. Nf3 Nc6 7. O-O a6 8. b3 Rb8 9. Bb2 b5 10. cxb5 axb5 11. d5 Na5 12. Nd4 b4 13. Nb1 e5 14. Nc2 Bf5 15. Nd2 Qd7 16. e4 Bh3 17. Ne3 c5 18. a3 Bxg2 19. Kxg2 Qc7 20. Qe2 Nd7 21. Rfc1 bxa3 22. Rxa3 f5 23. Rca1 Nb7 24. Nec4 Bh6 25. Ra6 Bxd2 26. Nxd2 Nd8 27. f3 Nf7 28. Bc3 Rb7 29. Rc6 Qd8 30. Ba5 Qe7 31. Ra6 Rfb8 32. Bc3 Qd8 33. Ra7 Qb6 34. Qa6 Kf8 35. Rxb7 Qxb7 36. Qxb7 Rxb7 37. Ra8+ Ke7 38. Ba5 Nf6 39. h4 Kd7 40. Kf2 Ke7 41. Ke3 Kd7 42. Bc3 Ke7 43. Ra3 Nd7 44. Nc4 Nd8 45. Ba5 Nf7 46. Kd3 Ke8 47. Bd2 Nb6 48. Ne3 fxe4+ 49. fxe4 Ke7 50. g4 Nd7 51. Nc4 Kf6 52. g5+ Kg7 53. Kc2 Nb6 54. Ne3 Kf8 55. Ra6 Ke7 56. Ng4 Nd7 57. Ra8 Rb8 58. Ra7 Ke8 59. Ba5 Nd8 60. Kc3 Rb7 61. Ra8 Rb8 62. Nf6+ Ke7 63. Ra7 Nb7 64. Bc7 Rf8 65. Rxb7 Nxf6 66. gxf6+ Rxf6 67. Bb8+ Kd8 68. Rxh7 Kc8 69. Rh8+ Kb7 70. Rd8 Rf3+ 71. Kc4 Rf4 72. Bxd6 Rxe4+ 73. Kxc5 Rxh4 74. Bxe5 Re4 75. Bd4 g5 76. b4 g4 77. Rg8 Rf4 78. Rg7+ Kc8 79. b5 Re4 80. b6 Kb8 81. Kc6 Re8 82. Be5+ 1-0

[Event "2nd Gujarat Open 2019"]
[Site "Ahmedabad, Gujarat"]
[Date "2019.09.27"]
[Round "8.25"]
[White "Mehdi Hasan Parag"]
[Black "Priyankara, Chamil"]
[Result "1-0"]
[ECO "B90"]
[WhiteElo "2183"]
[BlackElo "1917"]
[Annotator "NA"]
[PlyCount "67"]
[EventDate "2019.09.22"]
[EventType "swiss"]
[EventCountry "IND"]
[SourceTitle "playchess.com"]
[Source "ChessBase"]
[SourceQuality "1"]
[TimeControl "5400+30"]

1. e4 {[%emt 0:00:00]} c5 {[%emt 0:00:00]} 2. Nf3 {[%emt 0:00:00]} a6 {[%emt 0:00:16]} 3. d4 {[%emt 0:00:00]} cxd4 {[%emt 0:00:03]} 4. Nxd4 {[%emt 0:00:00]} Nf6 {[%emt 0:00:08]} 5. Nc3 {[%emt 0:00:13]} d6 {[%emt 0:01:24]} 6. Be3 {[%emt 0:00:31]} e5 {[%emt 0:00:35]} 7. Nb3 {[%emt 0:00:05]} Be7 {[%emt 0:00:05]} 8. f3 {[%emt 0:00:15]} Be6 {[%emt 0:00:05]} 9. Qd2 {[%emt 0:00:11]} O-O {[%emt 0:00:10]} 10. O-O-O {[%emt 0:00:05]} a5 {[%emt 0:01:44]} 11. a4 {[%emt 0:01:27]} Nc6 {[%emt 0:01:30]} 12. g4 {[%emt 0:01:06]} Nb4 {[%emt 0:03:47]} 13. g5 {[%emt 0:00:44]} Ne8 {[%emt 0:02:01]} 14. Rg1 {[%emt 0:00:43]} Qc8 {[%emt 0:07:41]} 15. Kb1 {[%emt 0:05:28]} Nc7 {[%emt 0:18:38]} 16. f4 {[%emt 0:04:41]} d5 {[%emt 0:16:29]} 17. f5 {[%emt 0:05:57]} d4 {[%emt 0:00:02]} 18. fxe6 {[%emt 0:00:22]} Nxe6 {[%emt 0:00:35]} 19. Nd5 {[%emt 0:02:18]} Nxd5 {[%emt 0:01:55]} 20. exd5 {[%emt 0:00:05]} dxe3 {[%emt 0:01:03]} 21. Qxe3 {[%emt 0:00:41]} Qd8 {[%emt 0:22:08]} 22. h4 {[%emt 0:02:18]} Nc7 {[%emt 0:11:56]} 23. Qxe5 {[%emt 0:02:30]} Bd6 {[%emt 0:00:01]} 24. Qe4 {[%emt 0:00:58]} Re8 {[%emt 0:00:41]} 25. Qf3 {[%emt 0:00:02]} Re5 {[%emt 0:06:10]} 26. Bd3 {[%emt 0:02:33]} Qe8 {[%emt 0:01:44]} 27. Rgf1 {[%emt 0:03:07]} b5 {[%emt 0:00:32]} 28. Nd4 {[%emt 0:01:22]} bxa4 {[%emt 0:01:38]} 29. Nf5 {[%emt 0:02:52]} Bf8 {[%emt 0:00:31]} 30. d6 {[%emt 0:00:07]} Nd5 {[%emt 0:00:51]} 31. Bc4 {[%emt 0:00:45]} Rxf5 {[%emt 0:00:28]} 32. Qxf5 {[%emt 0:00:18]} Ne3 {[%emt 0:00:13]} 33. Bxf7+ {[%emt 0:00:40]} Kh8 {[%emt 0:00:01]} 34. Bxe8 {[%emt 0:00:21]} 1-0

[Event "2nd Gujarat Open 2019"]
[Site "Ahmedabad, Gujarat"]
[Date "2019.09.27"]
[Round "8.26"]
[White "Siddharth, Jagadeesh"]
[Black "Kadam Om Manish"]
[Result "0-1"]
[ECO "E06"]
[WhiteElo "2362"]
[BlackElo "1930"]
[Annotator "NA"]
[PlyCount "118"]
[EventDate "2019.09.22"]
[EventType "swiss"]
[EventCountry "IND"]
[SourceTitle "playchess.com"]
[Source "ChessBase"]
[SourceQuality "1"]
[TimeControl "5400+30"]

1. d4 {[%emt 0:00:00]} Nf6 {[%emt 0:00:00]} 2. c4 {[%emt 0:00:00]} e6 {[%emt 0:00:00]} 3. g3 {[%emt 0:00:19]} d5 {[%emt 0:00:02]} 4. Bg2 {[%emt 0:00:09]} Be7 {[%emt 0:00:07]} 5. Nf3 {[%emt 0:00:09]} O-O {[%emt 0:00:15]} 6. Nc3 {[%emt 0:01:16]} c6 {[%emt 0:10:21]} 7. O-O {[%emt 0:00:54]} b6 {[%emt 0:00:14]} 8. b3 {[%emt 0:00:53]} Bb7 {[%emt 0:00:04]} 9. Bb2 {[%emt 0:00:10]} Nbd7 {[%emt 0:00:05]} 10. Qc2 {[%emt 0:00:07]} Rc8 {[%emt 0:00:13]} 11. e4 {[%emt 0:02:05]} dxe4 {[%emt 0:00:15]} 12. Nxe4 {[%emt 0:00:07]} Nxe4 {[%emt 0:00:38]} 13. Qxe4 {[%emt 0:00:03]} Nf6 {[%emt 0:00:19]} 14. Qc2 {[%emt 0:00:24]} Qc7 {[%emt 0:01:12]} 15. Rfe1 {[%emt 0:07:54]} Rfd8 {[%emt 0:03:30]} 16. c5 {[%emt 0:03:46]} Nd5 {[%emt 0:08:02]} 17. Ne5 {[%emt 0:04:00]} Bf6 {[%emt 0:12:17]} 18. Ng4 {[%emt 0:01:48]} Be7 {[%emt 0:00:56]} 19. a3 {[%emt 0:00:56]} Nf6 {[%emt 0:13:36]} 20. Ne5 {[%emt 0:03:51]} Nd7 {[%emt 0:01:15]} 21. Nd3 {[%emt 0:17:45]} Ba6 {[%emt 0:02:48]} 22. Rad1 {[%emt 0:03:59]} Bxd3 {[%emt 0:13:55]} 23. Rxd3 {[%emt 0:00:32]} bxc5 {[%emt 0:00:14]} 24. dxc5 {[%emt 0:00:20]} Nxc5 {[%emt 0:00:26]} 25. Rc3 {[%emt 0:00:08]} Qb6 {[%emt 0:00:38]} 26. b4 {[%emt 0:11:34]} Nd7 {[%emt 0:00:51]} 27. Rxc6 {[%emt 0:02:18]} Rxc6 {[%emt 0:00:08]} 28. Qxc6 {[%emt 0:00:34]} Qxc6 {[%emt 0:00:32]} 29. Bxc6 {[%emt 0:00:02]} Nb6 {[%emt 0:00:06]} 30. Re4 {[%emt 0:00:48]} Rd2 {[%emt 0:04:04]} 31. Be5 {[%emt 0:05:13]} Ra2 {[%emt 0:04:57]} 32. Bd4 {[%emt 0:08:43]} Rxa3 {[%emt 0:02:16]} 33. Bc5 {[%emt 0:00:01]} Rc3 {[%emt 0:00:17]} 34. Bxb6 {[%emt 0:01:17]} axb6 {[%emt 0:01:41]} 35. b5 {[%emt 0:00:09]} Rc2 {[%emt 0:01:13]} 36. Ra4 {[%emt 0:00:01]} g6 {[%emt 0:00:18]} 37. f4 {[%emt 0:04:53]} h5 {[%emt 0:00:25]} 38. Ra7 {[%emt 0:01:21]} Kf8 {[%emt 0:00:17]} 39. Rb7 {[%emt 0:01:49]} Bc5+ {[%emt 0:01:25]} 40. Kh1 {[%emt 0:00:03]} h4 {[%emt 0:00:07]} 41. gxh4 {[%emt 0:01:07]} Rf2 {[%emt 0:00:13]} 42. Rd7 {[%emt 0:01:06]} Rxf4 {[%emt 0:00:07]} 43. h5 {[%emt 0:00:00]} gxh5 44. Kg2 {[%emt 0:00:23]} h4 {[%emt 0:00:47]} 45. Kh3 {[%emt 0:00:40]} Kg7 {[%emt 0:00:12]} 46. Rd2 {[%emt 0:01:36]} f5 {[%emt 0:01:10]} 47. Rd7+ {[%emt 0:01:27]} Kf6 {[%emt 0:00:48]} 48. Rh7 {[%emt 0:00:01]} e5 {[%emt 0:01:06]} 49. Rxh4 {[%emt 0:00:04]} Rxh4+ {[%emt 0:00:03]} 50. Kxh4 {[%emt 0:00:01]} e4 {[%emt 0:00:06]} 51. Kg3 {[%emt 0:00:37]} Ke5 {[%emt 0:00:04]} 52. h4 {[%emt 0:00:21]} f4+ {[%emt 0:00:13]} 53. Kg4 {[%emt 0:00:39]} f3 {[%emt 0:00:05]} 54. Kg3 {[%emt 0:00:07]} Bd6 {[%emt 0:00:07]} 55. h5 {[%emt 0:00:31]} Kf5+ {[%emt 0:00:05]} 56. Kf2 {[%emt 0:00:20]} Kf4 {[%emt 0:00:04]} 57. h6 {[%emt 0:00:20]} e3+ {[%emt 0:00:06]} 58. Kg1 {[%emt 0:00:07]} e2 59. h7 {[%emt 0:00:10]} e1=Q+ {[%emt 0:00:09]} 0-1